Workbook

Sheet 利用方法
A1: 外注請求書書式の利用方法
B3: １．様式について
C5: この請求書は契約書(注文書発行済)の外注費及び、労務外注費等を請求するときに使用して下さい。
C7: (但し、労務費等（契約外）の場合は、請求計算の根拠となる労賃等の明細書を添付して下さい。)
B9: ２．様式の構成について
C11: 請求書用紙は、業者控・現場控・経理の３部となっています。
B13: ３．記入方法について
C15: この請求書はマクロを使用しています。マクロを有効にしてお使い下さい。
C17: 作成の際は、弊社ホームページより最新版をダウンロードして作成して下さい。
C19: 別紙「記入例」を参考にして作成して下さい。
C21: 請求書は、業者控に入力すると現場控・経理へ転記されます。
C23: 白色のセル及び必要に応じて水色のセルのみ入力して下さい。
C25: 消費税計算は四捨五入で設定してあります。必要に応じて上書き入力して下さい。
C27: 請求年月日、振込指定口座、住所氏名、工事名、消費税区分毎の当月出来高を必ず記入して
C28: 下さい。
C30: 工事コードがわかる場合は、工事コード欄を入力してください。（不明の場合は入力不要）
C32: 提出用（現場控・経理）には出力後、必ず捺印して提出して下さい。
C34: 契約書（注文書）を取り交わしている場合は、注文書金額の契約金額欄と２枚目の支払条件欄
C35: を記入して下さい。
C37: 増減の契約書（注文書）を取り交わした場合は、注文書金額の変更増減額欄を記入して下さい。
C39: 契約書（注文書）を取り交わしている工事で、２回目以降の請求の場合は、前回迄の消費税込
C40: 請求額を請求内容①前回迄出来高（税込）欄に記入して下さい。
C41: それ以外の場合は０を入力して下さい。
B43: ◎ | C43: 仕送り（相殺）がある場合は消費税区分毎に仕送額欄に記入し、明細書を添付して下さい。
C44: （弊社記入の場合もあり）
C46: 契約書（注文書）を取り交わしていない工事は、請求明細書（別紙様式又は自社書式でも可）を
C47: 添付するか、備考欄に請求内容を記入して下さい。
B49: ◎ | C49: 注文書を取り交わす予定の工事で注文金額が未確定の場合は、備考欄の水色セルを選択して
C50: 表示される[▼]より「仮払い」を選択して下さい。
B52: ◎ | C52: 備考欄に赤字のメッセージが表示される場合は、入力内容を確認して下さい。
C54: 灰色のセルは自動計算のため、入力の必要はありません。
C56: 印刷ボタンをクリックすると、業者控・現場控・経理の３部が印刷されます。
C58: 削除ボタンをクリックすると初期状態に戻ります。
C59: ※ 金融機関情報・住所氏名情報は削除されません。

Sheet 記入例
I1: (業者控)
B2: 請 求 書
B4: 関 越 舗 道 株式会社 御中
G5: （振込指定口座)
B6: 当月工事金額 | E6: =G24+G26+G28-I24-I26-I28 -> 218000 | G6: 金融機関名 | H6: 〇〇 | I6: 銀行
B7: 同消費税額 | E7: =IF(I29=0,G25+G27,G25+G27-I25-I27) -> 22000 | G7: 支店名 | H7: 〇〇 | I7: 支店
B8: 同請求額 | E8: =SUM(E6:F7) -> 240000 | G8: 口座名義 | H8: カ．〇〇ケンセツ
E9: (下段⑦差引請求額と一致します） | G9: 口座番号 | H9: 当座 | I9: 0123456
C10: 上記金額請求いたします。 | G10: 適格請求書№ | H10: T0123456789012
F11: 住所･氏名
C12: 請求日 | F12: 新潟県南魚沼郡湯沢町大字湯沢***-*
C13: 2023-10-31 | F13: 株式会社 ○○建設 | I13: ㊞
F14: 代表取締役 ○○○○ | H14: 012（345）6789
B16: 工 事 名 | E16: ○○○○○○○○工事 | H16: 工事コード
H17: 1230001
B19: 注文書金額 | E19: 契約金額 | F19: 変更増減額 | G19: 最終契約額 | H19: 備考
B20: A | C20: 工事金額 | E20: 500000 | F20: 200000 | G20: =IF(F20="",IF(E20="","",E20),IF(E20="","",E20+F20)) -> 700000 | H20: ○/○ ＊人工×15,000- 材工共一式
B21: B | C21: 消費税額 | E21: =IF(E20="","",ROUND(E20*10%,0)) -> 50000 | F21: =IF(F20="","",ROUND(F20*10%,0)) -> 20000 | G21: =IF(F21="",IF(E21="","",E21),IF(E21="","",E21+F21)) -> 70000
B22: C | C22: 合計金額（Ａ＋Ｂ） | E22: =IF(E20=0,"",E20+E21) -> 550000 | F22: =IF(F20="","",F20+F21) -> 220000 | G22: =IF(G21="",G20,IF(G20="","",G20+G21)) -> 770000
B23: 請 求 内 容 | C23: ①前回迄出来高額(税込) | E23: 110000 | F23: 当月出来高 | H23: 仕 送 り
C24: ②今回出来高額(税込) | E24: =G29 -> 275000 | F24: 10％対象 | G24: 250000 | H24: 10％対象 | I24: 30000
C25: ③出来高累計(①＋②) | E25: =SUM(E23:E24) -> 385000 | F25: 同消費税 | G25: =ROUND(G24*10%,0) -> 25000 | H25: 同消費税 | I25: =ROUND(I24*10%,0) -> 3000
C26: ④既入金済額 | E26: =E23 -> 110000 | F26: 8％対象 | H26: 8％対象
C27: ⑤今回請求額(③－④) | E27: =E25-E26 -> 275000 | F27: 同消費税 | G27: =ROUND(G26*8%,0) -> 0 | H27: 同消費税 | I27: =ROUND(I26*8%,0) -> 0
C28: ⑥仕送(相殺)金額(税込) | E28: =I29 -> 35000 | F28: 非・不課税 | H28: 非・不課税 | I28: 2000
C29: ⑦差引請求額(⑤－⑥) | E29: =E27-E28 -> 240000 | F29: 出来高計 | G29: =SUM(G24:G28) -> 275000 | H29: 仕送り計 | I29: =SUM(I24:I28) -> 35000
C30: ⑧未請求残高(Ｃ－③) | E30: =IF(I19="仮払い","",IF(G22="",0,G22-E25)) -> 385000
B32: 1.この請求書は契約書(注文書発行済)の工事費等を請求するときに使用して下さい。 （但し、契約外の場合は、請求計算の根拠となる、労賃・材料・物品納品書等を添付して下さい。） ２．請求書の提出期限は毎月末日締切、翌月５日迄必着を原則とします。 ３．誤記入、提出日遅延等の場合、支払が遅れる事がありますのでご了承下さい。
I36: 【令和 年 月分】
I38: (現場控)
B39: 請 求 書
B41: 関 越 舗 道 株式会社 御中
G42: （振込指定口座)
B43: 当月工事金額 | E43: =G61+G63+G65-I61-I63-I65 -> 218000 | G43: 金融機関名 | H43: =IF($H$6="","",$H$6) -> 〇〇 | I43: =IF($I$6="","",$I$6) -> 銀行
B44: 同消費税額 | E44: =IF(I66=0,G62+G64,G62+G64-I62-I64) -> 22000 | G44: 支店名 | H44: =IF($H$7="","",$H$7) -> 〇〇 | I44: 支店
B45: 同請求額 | E45: =SUM(E43:F44) -> 240000 | G45: 口座名義 | H45: =IF($H$8="","",$H$8) -> カ．〇〇ケンセツ | I45: =IF(I8="","",I8) -> 
E46: (下段⑦差引請求額と一致します） | G46: 口座番号 | H46: =IF($H$9="","",$H$9) -> 当座 | I46: =IF(I9="","",I9) -> 0123456
C47: 上記金額請求いたします。 | G47: 適格請求書№ | H47: =IF($H$10="","",$H$10) -> T0123456789012
F48: 住所･氏名 | G48: =IF($G$11="","",$G$11) -> 
C49: 請求日 | F49: =IF($F$12="","",$F$12) -> 新潟県南魚沼郡湯沢町大字湯沢***-*
C50: =IF($C$13="","",$C$13) -> 2023-10-31 | F50: =IF($F$13="","",$F$13) -> 株式会社 ○○建設 | I50: ㊞
F51: =IF($F$14="","",$F$14) -> 代表取締役 ○○○○ | H51: =IF($H$14="","",$H$14) -> 012（345）6789
B53: 工 事 名 | E53: =IF($E$16="","",$E$16) -> ○○○○○○○○工事 | H53: 工事コード
H54: =IF($H$17="","",$H$17) -> 1230001
B56: 注文書金額 | E56: 契約金額 | F56: 変更増減額 | G56: 最終契約額 | H56: 備考 | I56: =IF($I$19="","",$I$19) -> 
B57: A | C57: 工事金額 | E57: =IF($E$20="","",$E$20) -> 500000 | F57: =IF($F$20="","",$F$20) -> 200000 | G57: =IF(F57="",IF(E57="","",E57),IF(E57="","",E57+F57)) -> 700000 | H57: =IF($H$20="","",$H$20) -> ○/○ ＊人工×15,000- 材工共一式
B58: B | C58: 消費税額 | E58: =IF($E$21="","",$E$21) -> 50000 | F58: =IF($F$21="","",$F$21) -> 20000 | G58: =IF(F58="",IF(E58="","",E58),IF(E58="","",E58+F58)) -> 70000
B59: C | C59: 合計金額（Ａ＋Ｂ） | E59: =IF(ISERROR(E57+E58=TRUE),"",IF(E57+E58=0,"",E57+E58)) -> 550000 | F59: =IF(ISERROR(F57+F58=TRUE),"",IF(F57+F58=0,"",F57+F58)) -> 220000 | G59: =IF(G58="",G57,IF(G57="","",G57+G58)) -> 770000
B60: 請 求 内 容 | C60: ①前回迄出来高額(税込) | E60: =$E$23 -> 110000 | F60: 当月出来高 | H60: 仕 送 り
C61: ②今回出来高額(税込) | E61: =G66 -> 275000 | F61: 10％対象 | G61: =$G$24 -> 250000 | H61: 10％対象 | I61: =$I$24 -> 30000
C62: ③出来高累計(①＋②) | E62: =SUM(E60:E61) -> 385000 | F62: 同消費税 | G62: =$G$25 -> 25000 | H62: 同消費税 | I62: =$I$25 -> 3000
C63: ④既入金済額 | E63: =E60 -> 110000 | F63: 8％対象 | G63: =$G$26 -> 0 | H63: 8％対象 | I63: =$I$26 -> 0
C64: ⑤今回請求額(③－④) | E64: =E62-E63 -> 275000 | F64: 同消費税 | G64: =$G$27 -> 0 | H64: 同消費税 | I64: =$I$27 -> 0
C65: ⑥仕送(相殺)金額(税込) | E65: =I66 -> 35000 | F65: 非・不課税 | G65: =$G$28 -> 0 | H65: 非・不課税 | I65: =$I$28 -> 2000
C66: ⑦差引請求額(⑤－⑥) | E66: =E64-E65 -> 240000 | F66: 出来高計 | G66: =SUM(G61:G65) -> 275000 | H66: 仕送り計 | I66: =SUM(I61:I65) -> 35000
C67: ⑧未請求残高(Ｃ－③) | E67: =IF(I56="仮払い","",IF(G59="",0,G59-E62)) -> 385000
C69: 現 金 | D69: 手 形 | G69: 工事コード | H69: =IF($H$54="","",$H$54) -> 1230001
C70: 40 | D70: 60 | G70: 業者コード
D71: 60 | G71: 外 注 費 | H71: 労務外注費
C72: 科目コード | D72: 工種コード
I74: =$I$36 -> 【令和 年 月分】
I76: (経 理)
B77: 請 求 書
B79: 関 越 舗 道 株式会社 御中
G80: （振込指定口座)
B81: 当月工事金額 | E81: =G99+G101+G103-I99-I101-I103 -> 218000 | G81: 金融機関名 | H81: =IF($H$6="","",$H$6) -> 〇〇 | I81: =IF($I$6="","",$I$6) -> 銀行
B82: 同消費税額 | E82: =IF(I104=0,G100+G102,G100+G102-I100-I102) -> 22000 | G82: 支店名 | H82: =IF($H$7="","",$H$7) -> 〇〇 | I82: 支店
B83: 同請求額 | E83: =SUM(E81:F82) -> 240000 | G83: 口座名義 | H83: =IF($H$8="","",$H$8) -> カ．〇〇ケンセツ | I83: =IF(I46="","",I46) -> 0123456
E84: (下段⑦差引請求額と一致します） | G84: 口座番号 | H84: =IF($H$9="","",$H$9) -> 当座 | I84: =IF(I9="","",I9) -> 0123456
C85: 上記金額請求いたします。 | G85: 適格請求書№ | H85: =IF($H$10="","",$H$10) -> T0123456789012
F86: 住所･氏名 | G86: =IF($G$11="","",$G$11) -> 
C87: 請求日 | F87: =IF($F$12="","",$F$12) -> 新潟県南魚沼郡湯沢町大字湯沢***-*
C88: =IF($C$13="","",$C$13) -> 2023-10-31 | F88: =IF($F$13="","",$F$13) -> 株式会社 ○○建設 | I88: ㊞
F89: =IF($F$14="","",$F$14) -> 代表取締役 ○○○○ | H89: =IF($H$14="","",$H$14) -> 012（345）6789
B91: 工 事 名 | E91: =IF($E$16="","",$E$16) -> ○○○○○○○○工事 | H91: 工事コード
H92: =IF($H$17="","",$H$17) -> 1230001
B94: 注文書金額 | E94: 契約金額 | F94: 変更増減額 | G94: 最終契約額 | H94: 備考 | I94: =IF($I$19="","",$I$19) -> 
B95: A | C95: 工事金額 | E95: =IF($E$20="","",$E$20) -> 500000 | F95: =IF($F$20="","",$F$20) -> 200000 | G95: =IF(F95="",IF(E95="","",E95),IF(E95="","",E95+F95)) -> 700000 | H95: =IF($H$20="","",$H$20) -> ○/○ ＊人工×15,000- 材工共一式
B96: B | C96: 消費税額 | E96: =IF($E$21="","",$E$21) -> 50000 | F96: =IF($F$21="","",$F$21) -> 20000 | G96: =IF(F96="",IF(E96="","",E96),IF(E96="","",E96+F96)) -> 70000
B97: C | C97: 合計金額（Ａ＋Ｂ） | E97: =IF(ISERROR(E95+E96=TRUE),"",IF(E95+E96=0,"",E95+E96)) -> 550000 | F97: =IF(ISERROR(F95+F96=TRUE),"",IF(F95+F96=0,"",F95+F96)) -> 220000 | G97: =IF(G96="",G95,IF(G95="","",G95+G96)) -> 770000
B98: 請 求 内 容 | C98: ①前回迄出来高額(税込) | E98: =$E$23 -> 110000 | F98: 当月出来高 | H98: 仕 送 り
C99: ②今回出来高額(税込) | E99: =G104 -> 275000 | F99: 10％対象 | G99: =$G$24 -> 250000 | H99: 10％対象 | I99: =$I$24 -> 30000
C100: ③出来高累計(①＋②) | E100: =SUM(E98:E99) -> 385000 | F100: 同消費税 | G100: =$G$25 -> 25000 | H100: 同消費税 | I100: =$I$25 -> 3000
C101: ④既入金済額 | E101: =E98 -> 110000 | F101: 8％対象 | G101: =$G$26 -> 0 | H101: 8％対象 | I101: =$I$26 -> 0
C102: ⑤今回請求額(③－④) | E102: =E100-E101 -> 275000 | F102: 同消費税 | G102: =$G$27 -> 0 | H102: 同消費税 | I102: =$I$27 -> 0
C103: ⑥仕送(相殺)金額(税込) | E103: =I104 -> 35000 | F103: 非・不課税 | G103: =$G$28 -> 0 | H103: 非・不課税 | I103: =$I$28 -> 2000
C104: ⑦差引請求額(⑤－⑥) | E104: =E102-E103 -> 240000 | F104: 出来高計 | G104: =SUM(G99:G103) -> 275000 | H104: 仕送り計 | I104: =SUM(I99:I103) -> 35000
C105: ⑧未請求残高(Ｃ－③) | E105: =IF(I94="仮払い","",IF(G97="",0,G97-E100)) -> 385000
C107: 現 金 | D107: 手 形 | G107: 工事コード | H107: =IF($H$92="","",$H$92) -> 1230001
C108: =IF(C70="","",C70) -> 40 | D108: =IF(D70="","",D70) -> 60 | G108: 業者コード | H108: =IF(H70="","",H70) -> 
D109: =IF(D71="","",D71) -> 60 | G109: 外 注 費 | H109: 労務外注費
C110: 科目コード | D110: 工種コード
C111: =IF(C73="","",C73) ->  | D111: =IF(D73="","",D73) ->  | F111: 前回迄 | G111: =IF(E98="","",E98) -> 110000
I112: =$I$36 -> 【令和 年 月分】

Sheet 入力シート
I1: (業者控)
B2: 請 求 書
B4: 関 越 舗 道 株式会社 御中
G5: （振込指定口座)
B6: 当月工事金額 | E6: =G24+G26+G28-I24-I26-I28 -> 0 | G6: 金融機関名
B7: 同消費税額 | E7: =IF(I29=0,G25+G27,G25+G27-I25-I27) -> 0 | G7: 支店名 | I7: 支店
B8: 同請求額 | E8: =SUM(E6:F7) -> 0 | G8: 口座名義
E9: (下段⑦差引請求額と一致します） | G9: 口座番号
C10: 上記金額請求いたします。 | G10: 適格請求書№
F11: 住所･氏名
C12: 請求日
I13: ㊞
H14: （ ）
B16: 工 事 名 | H16: 工事コード
B19: 注文書金額 | E19: 契約金額 | F19: 変更増減額 | G19: 最終契約額 | H19: 備考
B20: A | C20: 工事金額 | G20: =IF(F20="",IF(E20="","",E20),IF(E20="","",E20+F20)) -> 
B21: B | C21: 消費税額 | E21: =IF(E20="","",ROUND(E20*10%,0)) ->  | F21: =IF(F20="","",ROUND(F20*10%,0)) ->  | G21: =IF(F21="",IF(E21="","",E21),IF(E21="","",E21+F21)) -> 
B22: C | C22: 合計金額（Ａ＋Ｂ） | E22: =IF(E20=0,"",E20+E21) ->  | F22: =IF(F20="","",F20+F21) ->  | G22: =IF(G21="",G20,IF(G20="","",G20+G21)) -> 
B23: 請 求 内 容 | C23: ①前回迄出来高額(税込) | F23: 当月出来高 | H23: 仕 送 り
C24: ②今回出来高額(税込) | E24: =G29 -> 0 | F24: 10％対象 | H24: 10％対象
C25: ③出来高累計(①＋②) | E25: =SUM(E23:E24) -> 0 | F25: 同消費税 | G25: =ROUND(G24*10%,0) -> 0 | H25: 同消費税 | I25: =ROUND(I24*10%,0) -> 0
C26: ④既入金済額 | E26: =E23 -> 0 | F26: 8％対象 | H26: 8％対象
C27: ⑤今回請求額(③－④) | E27: =E25-E26 -> 0 | F27: 同消費税 | G27: =ROUND(G26*8%,0) -> 0 | H27: 同消費税 | I27: =ROUND(I26*8%,0) -> 0
C28: ⑥仕送(相殺)金額(税込) | E28: =I29 -> 0 | F28: 非・不課税 | H28: 非・不課税
C29: ⑦差引請求額(⑤－⑥) | E29: =E27-E28 -> 0 | F29: 出来高計 | G29: =SUM(G24:G28) -> 0 | H29: 仕送り計 | I29: =SUM(I24:I28) -> 0
C30: ⑧未請求残高(Ｃ－③) | E30: =IF(I19="仮払い","",IF(G22="",0,G22-E25)) -> 0
B32: 1.この請求書は契約書(注文書発行済)の工事費等を請求するときに使用して下さい。 （但し、契約外の場合は、請求計算の根拠となる、労賃・材料・物品納品書等を添付して下さい。） ２．請求書の提出期限は毎月末日締切、翌月５日迄必着を原則とします。 ３．誤記入、提出日遅延等の場合、支払が遅れる事がありますのでご了承下さい。
I36: 【令和 年 月分】
I38: (現場控)
B39: 請 求 書
B41: 関 越 舗 道 株式会社 御中
G42: （振込指定口座)
B43: 当月工事金額 | E43: =G61+G63+G65-I61-I63-I65 -> 0 | G43: 金融機関名 | H43: =IF($H$6="","",$H$6) ->  | I43: =IF($I$6="","",$I$6) -> 
B44: 同消費税額 | E44: =IF(I66=0,G62+G64,G62+G64-I62-I64) -> 0 | G44: 支店名 | H44: =IF($H$7="","",$H$7) ->  | I44: 支店
B45: 同請求額 | E45: =SUM(E43:F44) -> 0 | G45: 口座名義 | H45: =IF($H$8="","",$H$8) ->  | I45: =IF(I8="","",I8) -> 
E46: (下段⑦差引請求額と一致します） | G46: 口座番号 | H46: =IF($H$9="","",$H$9) ->  | I46: =IF(I9="","",I9) -> 
C47: 上記金額請求いたします。 | G47: 適格請求書№ | H47: =IF($H$10="","",$H$10) -> 
F48: 住所･氏名 | G48: =IF($G$11="","",$G$11) -> 
C49: 請求日 | F49: =IF($F$12="","",$F$12) -> 
C50: =IF($C$13="","",$C$13) ->  | F50: =IF($F$13="","",$F$13) ->  | I50: ㊞
F51: =IF($F$14="","",$F$14) ->  | H51: =IF($H$14="","",$H$14) -> （ ）
B53: 工 事 名 | E53: =IF($E$16="","",$E$16) ->  | H53: 工事コード
H54: =IF($H$17="","",$H$17) -> 
B56: 注文書金額 | E56: 契約金額 | F56: 変更増減額 | G56: 最終契約額 | H56: 備考 | I56: =IF($I$19="","",$I$19) -> 
B57: A | C57: 工事金額 | E57: =IF($E$20="","",$E$20) ->  | F57: =IF($F$20="","",$F$20) ->  | G57: =IF(F57="",IF(E57="","",E57),IF(E57="","",E57+F57)) ->  | H57: =IF($H$20="","",$H$20) -> 
B58: B | C58: 消費税額 | E58: =IF($E$21="","",$E$21) ->  | F58: =IF($F$21="","",$F$21) ->  | G58: =IF(F58="",IF(E58="","",E58),IF(E58="","",E58+F58)) -> 
B59: C | C59: 合計金額（Ａ＋Ｂ） | E59: =IF(ISERROR(E57+E58=TRUE),"",IF(E57+E58=0,"",E57+E58)) ->  | F59: =IF(ISERROR(F57+F58=TRUE),"",IF(F57+F58=0,"",F57+F58)) ->  | G59: =IF(G58="",G57,IF(G57="","",G57+G58)) -> 
B60: 請 求 内 容 | C60: ①前回迄出来高額(税込) | E60: =$E$23 -> 0 | F60: 当月出来高 | H60: 仕 送 り
C61: ②今回出来高額(税込) | E61: =G66 -> 0 | F61: 10％対象 | G61: =$G$24 -> 0 | H61: 10％対象 | I61: =$I$24 -> 0
C62: ③出来高累計(①＋②) | E62: =SUM(E60:E61) -> 0 | F62: 同消費税 | G62: =$G$25 -> 0 | H62: 同消費税 | I62: =$I$25 -> 0
C63: ④既入金済額 | E63: =E60 -> 0 | F63: 8％対象 | G63: =$G$26 -> 0 | H63: 8％対象 | I63: =$I$26 -> 0
C64: ⑤今回請求額(③－④) | E64: =E62-E63 -> 0 | F64: 同消費税 | G64: =$G$27 -> 0 | H64: 同消費税 | I64: =$I$27 -> 0
C65: ⑥仕送(相殺)金額(税込) | E65: =I66 -> 0 | F65: 非・不課税 | G65: =$G$28 -> 0 | H65: 非・不課税 | I65: =$I$28 -> 0
C66: ⑦差引請求額(⑤－⑥) | E66: =E64-E65 -> 0 | F66: 出来高計 | G66: =SUM(G61:G65) -> 0 | H66: 仕送り計 | I66: =SUM(I61:I65) -> 0
C67: ⑧未請求残高(Ｃ－③) | E67: =IF(I56="仮払い","",IF(G59="",0,G59-E62)) -> 0
C69: 現 金 | D69: 手 形 | G69: 工事コード | H69: =IF($H$54="","",$H$54) -> 
G70: 業者コード
G71: 外 注 費 | H71: 労務外注費
C72: 科目コード | D72: 工種コード
I74: =$I$36 -> 【令和 年 月分】
I76: (経 理)
B77: 請 求 書
B79: 関 越 舗 道 株式会社 御中
G80: （振込指定口座)
B81: 当月工事金額 | E81: =G99+G101+G103-I99-I101-I103 -> 0 | G81: 金融機関名 | H81: =IF($H$6="","",$H$6) ->  | I81: =IF($I$6="","",$I$6) -> 
B82: 同消費税額 | E82: =IF(I104=0,G100+G102,G100+G102-I100-I102) -> 0 | G82: 支店名 | H82: =IF($H$7="","",$H$7) ->  | I82: 支店
B83: 同請求額 | E83: =SUM(E81:F82) -> 0 | G83: 口座名義 | H83: =IF($H$8="","",$H$8) ->  | I83: =IF(I46="","",I46) -> 
E84: (下段⑦差引請求額と一致します） | G84: 口座番号 | H84: =IF($H$9="","",$H$9) ->  | I84: =IF(I9="","",I9) -> 
C85: 上記金額請求いたします。 | G85: 適格請求書№ | H85: =IF($H$10="","",$H$10) -> 
F86: 住所･氏名 | G86: =IF($G$11="","",$G$11) -> 
C87: 請求日 | F87: =IF($F$12="","",$F$12) -> 
C88: =IF($C$13="","",$C$13) ->  | F88: =IF($F$13="","",$F$13) ->  | I88: ㊞
F89: =IF($F$14="","",$F$14) ->  | H89: =IF($H$14="","",$H$14) -> （ ）
B91: 工 事 名 | E91: =IF($E$16="","",$E$16) ->  | H91: 工事コード
H92: =IF($H$17="","",$H$17) -> 
B94: 注文書金額 | E94: 契約金額 | F94: 変更増減額 | G94: 最終契約額 | H94: 備考 | I94: =IF($I$19="","",$I$19) -> 
B95: A | C95: 工事金額 | E95: =IF($E$20="","",$E$20) ->  | F95: =IF($F$20="","",$F$20) ->  | G95: =IF(F95="",IF(E95="","",E95),IF(E95="","",E95+F95)) ->  | H95: =IF($H$20="","",$H$20) -> 
B96: B | C96: 消費税額 | E96: =IF($E$21="","",$E$21) ->  | F96: =IF($F$21="","",$F$21) ->  | G96: =IF(F96="",IF(E96="","",E96),IF(E96="","",E96+F96)) -> 
B97: C | C97: 合計金額（Ａ＋Ｂ） | E97: =IF(ISERROR(E95+E96=TRUE),"",IF(E95+E96=0,"",E95+E96)) ->  | F97: =IF(ISERROR(F95+F96=TRUE),"",IF(F95+F96=0,"",F95+F96)) ->  | G97: =IF(G96="",G95,IF(G95="","",G95+G96)) -> 
B98: 請 求 内 容 | C98: ①前回迄出来高額(税込) | E98: =$E$23 -> 0 | F98: 当月出来高 | H98: 仕 送 り
C99: ②今回出来高額(税込) | E99: =G104 -> 0 | F99: 10％対象 | G99: =$G$24 -> 0 | H99: 10％対象 | I99: =$I$24 -> 0
C100: ③出来高累計(①＋②) | E100: =SUM(E98:E99) -> 0 | F100: 同消費税 | G100: =$G$25 -> 0 | H100: 同消費税 | I100: =$I$25 -> 0
C101: ④既入金済額 | E101: =E98 -> 0 | F101: 8％対象 | G101: =$G$26 -> 0 | H101: 8％対象 | I101: =$I$26 -> 0
C102: ⑤今回請求額(③－④) | E102: =E100-E101 -> 0 | F102: 同消費税 | G102: =$G$27 -> 0 | H102: 同消費税 | I102: =$I$27 -> 0
C103: ⑥仕送(相殺)金額(税込) | E103: =I104 -> 0 | F103: 非・不課税 | G103: =$G$28 -> 0 | H103: 非・不課税 | I103: =$I$28 -> 0
C104: ⑦差引請求額(⑤－⑥) | E104: =E102-E103 -> 0 | F104: 出来高計 | G104: =SUM(G99:G103) -> 0 | H104: 仕送り計 | I104: =SUM(I99:I103) -> 0
C105: ⑧未請求残高(Ｃ－③) | E105: =IF(I94="仮払い","",IF(G97="",0,G97-E100)) -> 0
C107: 現 金 | D107: 手 形 | G107: 工事コード | H107: =IF($H$92="","",$H$92) -> 
C108: =IF(C70="","",C70) ->  | D108: =IF(D70="","",D70) ->  | G108: 業者コード | H108: =IF(H70="","",H70) -> 
D109: =IF(D71="","",D71) ->  | G109: 外 注 費 | H109: 労務外注費
C110: 科目コード | D110: 工種コード
C111: =IF(C73="","",C73) ->  | D111: =IF(D73="","",D73) ->  | F111: 前回迄 | G111: =IF(E98="","",E98) -> 0
I112: =$I$36 -> 【令和 年 月分】
